bitfinex/quotes_BTCUSD_20230404
["timestamp","ask_amount","ask_price","bid_price","bid_amount"]
[1680618522399,0.40151821,28154.0,28151.0,0.01567362]
[1680618522617,0.40151821,28154.0,28151.0,0.1704]
[1680618522618,0.0843,28152.0,28151.0,0.1704]
[1680618523075,0.0843,28152.0,28151.0,0.192943]
[1680618524127,0.0863,28152.0,28151.0,0.1884]
[1680618524585,0.12472724,28152.0,28151.0,0.211892]
[1680618524805,0.12472724,28152.0,28151.0,0.1884]
[1680618529441,0.12272724,28152.0,28151.0,0.1704]
[1680618529706,0.12272724,28152.0,28151.0,0.1714]
[1680618530250,0.03842724,28152.0,28151.0,0.19066349]
[1680618530546,0.03842724,28152.0,28151.0,0.22062441]
[1680618530820,0.03842724,28152.0,28151.0,0.20641541]
[1680618531110,0.03842724,28152.0,28151.0,0.56012597]
[1680618531380,0.03842724,28152.0,28151.0,0.57553497]
[1680618531646,0.00021,28155.0,28152.0,0.2]
[1680618532137,1.37474938,28155.0,28153.0,0.022565]
[1680618532399,1.37474938,28155.0,28153.0,0.1704]
[1680618532679,0.0356042,28154.0,28152.0,0.1789228]
[1680618532946,0.0358142,28154.0,28153.0,0.19314]
[1680618533440,0.0358142,28154.0,28153.0,0.1774]
[1680618533712,0.0358142,28154.0,28153.0,0.20222261]
[1680618533991,0.0368142,28154.0,28153.0,0.20310361]
[1680618534253,0.0358142,28154.0,28153.0,0.03202961]
[1680618534508,0.0368142,28154.0,28153.0,0.21063461]
[1680618535066,0.0368142,28154.0,28153.0,0.007]
[1680618535295,0.38229121,28154.0,28153.0,0.007]
[1680618535625,0.38229121,28154.0,28153.0,0.0082]
[1680618536173,0.38129121,28154.0,28153.0,0.0012]
[1680618537038,0.38129121,28154.0,28153.0,0.0082]
[1680618537328,0.52013063,28154.0,28153.0,0.0012]
[1680618537569,0.52113063,28154.0,28153.0,0.0082]
[1680618538638,0.52013063,28154.0,28153.0,0.0012]
[1680618538899,0.52113063,28154.0,28153.0,0.0082]
[1680618539120,0.52013063,28154.0,28153.0,0.0082]
[1680618539335,0.52113063,28154.0,28153.0,0.0082]
[1680618539749,0.52113063,28154.0,28153.0,0.0012]
[1680618539750,0.52013063,28154.0,28153.0,0.0012]
[1680618539924,0.52113063,28154.0,28153.0,0.0082]
[1680618540147,0.52013063,28154.0,28153.0,0.0012]
[1680618540481,0.52113063,28154.0,28153.0,0.0082]
[1680618541331,0.52013063,28154.0,28153.0,0.0012]
[1680618541571,0.52113063,28154.0,28153.0,0.0082]
[1680618541797,0.0358142,28154.0,28153.0,0.0012]
[1680618542034,0.0486042,28154.0,28153.0,0.04888505]
[1680618542262,0.0486042,28154.0,28153.0,1.19337337]
[1680618542481,0.0486042,28154.0,28153.0,1.34856722]
[1680618542712,0.0486042,28154.0,28153.0,1.22135408]
[1680618542946,0.0486042,28154.0,28153.0,1.34865839]
[1680618543176,0.0486042,28154.0,28153.0,1.22135408]
[1680618543405,0.0356042,28154.0,28153.0,1.42535046]
[1680618543908,0.0356042,28154.0,28153.0,1.55266206]
[1680618544345,0.0376042,28154.0,28153.0,1.57066206]
[1680618544559,0.0356042,28154.0,28153.0,1.55266206]
[1680618544775,0.0356042,28154.0,28153.0,1.3583156]
[1680618545030,0.0376042,28154.0,28153.0,1.27397188]
[1680618545251,0.0376042,28154.0,28153.0,1.31640321]
[1680618545486,0.0376042,28154.0,28153.0,1.38870406]
[1680618545702,0.0356042,28154.0,28153.0,1.5495943]
[1680618545917,0.0376042,28154.0,28153.0,1.34627518]
[1680618546131,0.0356042,28154.0,28153.0,1.42631433]
[1680618546565,0.0356042,28154.0,28153.0,1.43760571]
[1680618546789,0.0356042,28154.0,28153.0,1.63847098]
[1680618547011,0.0356042,28154.0,28153.0,1.54104755]
[1680618547233,0.03754124,28154.0,28153.0,1.38364865]
[1680618547467,0.03554124,28154.0,28153.0,1.36564865]
[1680618547686,0.03754124,28154.0,28153.0,1.38364865]
[1680618547905,0.03554124,28154.0,28153.0,1.17064755]
[1680618548135,0.03604124,28154.0,28153.0,1.18864755]
[1680618548579,0.03604124,28154.0,28153.0,1.11634321]
[1680618549479,0.03604124,28154.0,28153.0,1.28668321]
[1680618550333,0.03604124,28154.0,28153.0,1.35850441]
[1680618550590,0.03604124,28154.0,28153.0,1.56877291]
[1680618550822,0.03604124,28154.0,28153.0,1.56847291]
[1680618551046,0.03604124,28154.0,28153.0,1.36865506]
[1680618551266,0.03604124,28154.0,28153.0,1.46671484]
[1680618551565,0.03604124,28154.0,28153.0,1.44896755]
[1680618551792,0.03404124,28154.0,28153.0,1.43096755]
[1680618552017,0.03404124,28154.0,28153.0,1.73096755]
[1680618552904,0.03604124,28154.0,28153.0,1.74896755]
[1680618553568,1.50021,28155.0,28154.0,1.70959]
[1680618553788,1.5,28155.0,28154.0,3.07606927]
[1680618554024,1.48345217,28155.0,28154.0,3.06368665]
[1680618554278,1.48345217,28155.0,28154.0,3.03443545]
[1680618554279,0.26345217,28155.0,28154.0,3.03443545]
[1680618554540,0.26345217,28155.0,28154.0,3.03653545]
[1680618554770,0.26345217,28155.0,28154.0,1.48551905]
[1680618554771,0.26545217,28155.0,28154.0,1.48551905]
[1680618554980,0.26545217,28155.0,28154.0,1.61739762]
[1680618555639,0.26545217,28155.0,28154.0,1.40514656]
[1680618555868,0.26566217,28155.0,28154.0,1.58502983]
[1680618556762,0.26566217,28155.0,28154.0,1.7972078]
[1680618556977,0.26566217,28155.0,28154.0,1.59352983]
[1680618559945,0.26566217,28155.0,28154.0,1.80567647]
[1680618564128,0.26566217,28155.0,28154.0,1.6171732]
[1680618564379,0.26566217,28155.0,28154.0,1.8032632]
[1680618565936,0.26566217,28155.0,28154.0,1.71154151]
[1680618566174,0.26566217,28155.0,28154.0,1.15698751]
[1680618567284,0.26566217,28155.0,28154.0,1.32663222]
[1680618567729,0.26566217,28155.0,28154.0,1.15698751]
[1680618568187,0.26566217,28155.0,28154.0,1.12139751]
[1680618568876,0.26566217,28155.0,28154.0,0.65355366]
[1680618569107,0.26566217,28155.0,28154.0,0.65361366]
[1680618569108,0.29222839,28155.0,28154.0,0.65361366]
[1680618569352,0.26566217,28155.0,28154.0,0.66782066]
[1680618569565,0.31009369,28155.0,28154.0,0.66782066]
[1680618569784,0.31009369,28155.0,28154.0,0.58298156]
[1680618570010,0.81564664,28155.0,28154.0,0.1925]
[1680618570235,0.84465601,28155.0,28154.0,0.1725]
[1680618570455,0.84665601,28155.0,28154.0,0.1905]
[1680618570685,0.84465601,28155.0,28154.0,0.1725]
[1680618570908,0.84465601,28155.0,28154.0,0.1905]
[1680618570909,0.81564664,28155.0,28154.0,0.1905]
[1680618571122,0.81364664,28155.0,28154.0,0.1725]
[1680618571356,0.81964664,28155.0,28154.0,0.1735]
[1680618571579,0.81364664,28155.0,28154.0,0.1725]
[1680618571801,0.9034213,28155.0,28154.0,0.1725]
[1680618572047,0.82564664,28155.0,28154.0,0.1735]
[1680618572286,0.86021464,28155.0,28154.0,0.1735]
[1680618572525,0.82564664,28155.0,28154.0,0.1735]
[1680618573011,0.81364664,28155.0,28154.0,0.1725]
[1680618573228,0.82564664,28155.0,28154.0,0.1735]
[1680618573460,0.81364664,28155.0,28154.0,0.1725]
[1680618573693,0.81364664,28155.0,28154.0,0.1735]
[1680618573694,0.82564664,28155.0,28154.0,0.1735]
[1680618573908,0.81364664,28155.0,28154.0,0.1725]
[1680618574124,0.82564664,28155.0,28154.0,0.1735]
[1680618577405,0.81364664,28155.0,28154.0,0.1725]
[1680618577620,0.82564664,28155.0,28154.0,0.1735]
[1680618578858,0.81336879,28155.0,28154.0,0.1725]
[1680618579560,0.82536879,28155.0,28154.0,0.1735]
[1680618579975,0.81336879,28155.0,28154.0,0.1725]
[1680618580181,0.82536879,28155.0,28154.0,0.1735]
[1680618580606,0.81336879,28155.0,28154.0,0.1725]
[1680618580858,0.82536879,28155.0,28154.0,0.1735]
[1680618581724,0.81336879,28155.0,28154.0,0.1725]
[1680618582134,0.82536879,28155.0,28154.0,0.196264]
[1680618582491,0.83736879,28155.0,28154.0,0.1745]
[1680618582701,0.81336879,28155.0,28154.0,0.1725]
[1680618584387,0.81336879,28155.0,28154.0,0.186707]
[1680618584631,0.82536879,28155.0,28154.0,0.187707]
[1680618584828,0.81336879,28155.0,28154.0,0.186707]
[1680618585040,0.81936879,28155.0,28154.0,0.187707]
[1680618585258,0.81336879,28155.0,28154.0,0.186707]
[1680618585464,0.82536879,28155.0,28154.0,0.187707]
[1680618585668,0.82536879,28155.0,28154.0,0.210708]
[1680618585939,0.81336879,28155.0,28154.0,0.209828]
[1680618586138,0.81936879,28155.0,28154.0,0.210828]
[1680618586371,0.81336879,28155.0,28154.0,0.209828]
[1680618586688,0.82536879,28155.0,28154.0,0.210828]
[1680618587148,0.82536879,28155.0,28154.0,0.17362]
[1680618587360,0.82536879,28155.0,28154.0,0.197546]
[1680618587640,0.81936879,28155.0,28154.0,0.197546]
[1680618587891,0.81936879,28155.0,28154.0,0.196546]
[1680618588123,0.83136879,28155.0,28154.0,0.197546]
[1680618588560,0.83136879,28155.0,28154.0,0.196888]
[1680618588996,0.81336879,28155.0,28154.0,0.1725]
[1680618589220,0.81936879,28155.0,28154.0,0.1735]
[1680618589444,0.90913667,28155.0,28154.0,0.196052]
[1680618589747,0.86470515,28155.0,28154.0,0.196071]
[1680618590066,0.86470515,28155.0,28154.0,0.196257]
[1680618590273,0.5207522,28155.0,28154.0,0.0021]
[1680618590501,0.83935839,28155.0,28154.0,0.0031]
[1680618590730,0.83935839,28155.0,28154.0,0.0021]
[1680618590731,0.74325839,28155.0,28154.0,0.0021]
[1680618590969,0.74925839,28155.0,28154.0,0.1735]
[1680618591193,0.74325839,28155.0,28154.0,0.0021]
[1680618591416,0.35888432,28155.0,28154.0,0.017307]
[1680618591632,0.35888432,28155.0,28154.0,0.1735]
[1680618592306,0.35888432,28155.0,28154.0,0.03658535]
[1680618592533,0.35888432,28155.0,28154.0,0.20698535]
[1680618592761,0.35909432,28155.0,28154.0,0.1735]
[1680618592965,0.35888432,28155.0,28154.0,0.1735]
[1680618593185,0.35888432,28155.0,28154.0,0.0031]
[1680618593648,0.68893573,28155.0,28154.0,0.0031]
[1680618594315,0.27538432,28155.0,28154.0,0.18542918]
[1680618594534,0.27538432,28155.0,28154.0,0.22227418]
[1680618594768,0.27559432,28155.0,28154.0,0.20806718]
[1680618595021,0.27559432,28155.0,28154.0,0.1735]
[1680618595241,0.27538432,28155.0,28154.0,0.1735]
[1680618596610,0.27538432,28155.0,28154.0,0.195993]
[1680618596805,0.27559432,28155.0,28154.0,0.195993]
[1680618597471,0.27559432,28155.0,28154.0,0.1735]
[1680618597696,0.27559432,28155.0,28154.0,0.197459]
[1680618597697,0.27538432,28155.0,28154.0,0.197459]
[1680618597911,0.27559432,28155.0,28154.0,0.197459]
[1680618598133,0.27559432,28155.0,28154.0,0.196622]
[1680618598580,0.27559432,28155.0,28154.0,0.1735]
[1680618598801,0.27538432,28155.0,28154.0,0.1735]
[1680618599908,0.27559432,28155.0,28154.0,0.1735]
[1680618600164,0.27559432,28155.0,28154.0,0.20512224]
[1680618600396,0.27538432,28155.0,28154.0,0.82028196]
[1680618600629,0.27559432,28155.0,28154.0,1.57533421]
[1680618600859,0.00021,28158.0,28156.0,0.374]
[1680618601081,0.1072,28165.0,28157.0,1.02067606]
[1680618601314,0.10699,28165.0,28159.0,0.45892071]
[1680618601538,0.10699,28165.0,28160.0,0.68004715]
[1680618601769,0.10699,28165.0,28161.0,0.221428]
[1680618601994,0.53974233,28165.0,28162.0,0.065629]
[1680618602217,0.53974233,28165.0,28163.0,0.023124]
[1680618602466,0.33774429,28164.0,28163.0,0.193464]
[1680618602726,0.33774429,28164.0,28163.0,0.023124]
[1680618602951,0.33774429,28164.0,28163.0,0.193464]
[1680618603172,0.33795429,28164.0,28163.0,0.193464]
[1680618603624,0.33795429,28164.0,28163.0,0.195464]
[1680618603843,9e-05,28164.0,28163.0,0.209787]
[1680618604108,0.10699,28165.0,28163.0,0.209667]
[1680618604352,0.10699,28165.0,28164.0,0.021603]
[1680618604600,0.10699,28165.0,28164.0,0.54665356]
[1680618604825,0.10709,28165.0,28164.0,0.192123]
[1680618605053,0.10709,28165.0,28164.0,0.192063]
[1680618605320,0.44963123,28165.0,28164.0,0.192063]
[1680618605550,0.15207412,28165.0,28164.0,0.192689]
[1680618605779,0.11209,28165.0,28164.0,0.17034]
[1680618606018,0.42286911,28164.0,28163.0,0.00018]
[1680618606248,0.32544593,28164.0,28161.0,0.17052]
[1680618606483,0.72832882,28164.0,28161.0,0.00018]
[1680618606714,0.8054019,28164.0,28162.0,0.17034]
[1680618606938,0.72122782,28164.0,28161.0,0.17052]
[1680618607164,0.72122782,28164.0,28160.0,0.00018]
[1680618607385,0.72122782,28164.0,28162.0,0.17034]
[1680618607633,0.72143782,28164.0,28160.0,0.17052]
[1680618607856,0.7968807,28164.0,28160.0,0.17034]
[1680618608539,0.7968807,28164.0,28160.0,0.17234]
[1680618608763,0.46675984,28163.0,28160.0,0.17234]
[1680618608979,0.46675984,28163.0,28161.0,0.17034]
[1680618610333,0.5558657,28163.0,28160.0,0.17052]
[1680618610613,0.5558657,28163.0,28162.0,0.17034]
[1680618610822,0.6399657,28163.0,28161.0,0.17034]
[1680618611039,0.084,28162.0,28160.0,0.16552]
[1680618611257,0.49881933,28162.0,28161.0,0.021881]
[1680618611487,0.49881933,28162.0,28159.0,0.01587821]
[1680618611488,0.45999936,28161.0,28159.0,0.01587821]
[1680618611706,0.45999936,28161.0,28160.0,0.024106]
[1680618611924,0.45999936,28161.0,28160.0,0.194446]
[1680618612147,0.46020936,28161.0,28160.0,0.194446]
[1680618612828,0.82823153,28161.0,28159.0,0.002]
[1680618613066,0.35540225,28160.0,28159.0,0.002]
[1680618613280,0.31818625,28160.0,28159.0,0.002]
[1680618613725,0.31818625,28160.0,28156.0,0.1704]
[1680618613938,0.51465868,28160.0,28156.0,0.1704]
[1680618614158,0.41090531,28159.0,28156.0,0.1704]
[1680618614389,0.64590686,28159.0,28155.0,0.17058]
[1680618614610,0.64590686,28159.0,28157.0,0.1704]
[1680618614824,0.64590686,28159.0,28156.0,0.17858]
[1680618615049,0.08383264,28158.0,28155.0,0.18279603]
[1680618615269,0.08383264,28158.0,28157.0,0.1704]
[1680618615498,0.08383264,28158.0,28156.0,0.17058]
[1680618615786,0.41190531,28159.0,28157.0,0.18463484]
[1680618616008,0.001,28159.0,28158.0,0.023663]
[1680618616236,0.43755057,28159.0,28157.0,0.18463484]
[1680618616474,0.0835,28160.0,28159.0,0.2]
[1680618616475,0.00021,28160.0,28159.0,0.2]
[1680618616698,0.00021,28162.0,28159.0,0.26456]
[1680618616928,0.36698261,28162.0,28160.0,0.023046]
[1680618617151,0.40379884,28161.0,28160.0,0.193386]
[1680618617382,0.40400884,28161.0,28160.0,0.023046]
[1680618617607,0.40379884,28161.0,28160.0,0.17034]
[1680618617836,0.04061088,28161.0,28160.0,0.193319]
[1680618618069,0.43606903,28161.0,28160.0,0.193319]
[1680618618349,0.44327903,28161.0,28160.0,0.194319]
[1680618618795,0.40332878,28161.0,28160.0,0.194319]
[1680618619019,0.71247521,28161.0,28160.0,0.001]
[1680618619245,0.0834,28160.0,28159.0,0.1704]
[1680618619466,0.47343377,28160.0,28158.0,0.17052]
[1680618619684,0.31861236,28159.0,28157.0,0.17058]
[1680618619909,0.0841,28158.0,28157.0,0.17058]
[1680618620126,0.0841,28158.0,28157.0,0.18476349]
[1680618620575,0.23481236,28159.0,28157.0,0.18476349]
[1680618620576,0.31881236,28159.0,28157.0,0.20701249]
[1680618620801,0.23481236,28159.0,28158.0,0.01464541]
[1680618621022,0.23481236,28159.0,28158.0,0.18504541]
[1680618621696,0.45627067,28160.0,28158.0,0.1704]
[1680618621932,0.00021,28160.0,28159.0,0.49660737]
[1680618622199,0.52299,28165.0,28159.0,1.14605161]
[1680618622200,0.00021,28164.0,28159.0,1.14605161]
[1680618622424,0.5232,28165.0,28162.0,0.2]
[1680618622649,0.90495195,28165.0,28163.0,0.39145556]
[1680618622881,0.61368062,28165.0,28164.0,0.022791]
[1680618623102,0.61389062,28165.0,28164.0,0.193131]
[1680618623553,0.9878065,28165.0,28164.0,0.207333]
[1680618623776,0.61389062,28165.0,28164.0,0.193131]
[1680618624464,1.14501119,28165.0,28164.0,0.17034]
[1680618624986,1.14501119,28165.0,28161.0,0.02730465]
[1680618624987,1.14501119,28165.0,28162.0,0.014203]
[1680618625229,1.14501119,28165.0,28163.0,0.01203206]
[1680618625448,1.14501119,28165.0,28164.0,0.024701]
[1680618625449,1.05432057,28165.0,28164.0,0.024701]
[1680618625680,1.05432057,28165.0,28164.0,0.17234]
[1680618625900,1.05432057,28165.0,28164.0,0.002]
[1680618626137,1.05432057,28165.0,28163.0,0.17034]
[1680618626358,1.05432057,28165.0,28163.0,0.008]
[1680618626597,1.05432057,28165.0,28162.0,0.17034]
[1680618626818,0.607,28165.0,28163.0,0.024001]
[1680618627046,0.607,28165.0,28164.0,0.002]
[1680618627266,0.607,28165.0,28164.0,0.022811]
[1680618628870,0.612,28165.0,28164.0,0.023811]
[1680618629307,0.612,28165.0,28164.0,0.001]
[1680618629529,0.612,28165.0,28164.0,0.0501769]
[1680618629746,0.612,28165.0,28164.0,0.022819]
[1680618629968,0.612,28165.0,28164.0,0.001]
[1680618630209,0.612,28165.0,28164.0,0.19569]
[1680618630349,0.612,28165.0,28164.0,0.193567]
[1680618630589,0.5282,28165.0,28164.0,0.17134]
[1680618630885,0.90740003,28165.0,28164.0,0.17134]
[1680618631077,0.90240003,28165.0,28164.0,0.17034]
[1680618631286,0.90740003,28165.0,28163.0,0.17034]
[1680618631480,0.90740003,28165.0,28164.0,0.022412]
[1680618631755,0.90240003,28165.0,28164.0,0.19263]
[1680618631970,0.5282,28165.0,28164.0,0.1944]
[1680618632193,0.5232,28165.0,28164.0,0.192903]
[1680618632415,0.58943,28165.0,28164.0,0.17034]
[1680618632618,0.5282,28165.0,28164.0,0.193248]
[1680618632829,0.5232,28165.0,28164.0,0.193248]
[1680618633036,0.5282,28165.0,28164.0,0.193248]
[1680618633244,0.5232,28165.0,28164.0,0.193248]
[1680618633456,0.5232,28165.0,28164.0,0.20745]
[1680618633715,0.50021,28165.0,28164.0,0.193248]
[1680618633918,0.37421,28171.0,28164.0,0.193428]
[1680618634128,0.37421,28171.0,28165.0,0.14189681]
[1680618634129,0.0838,28168.0,28165.0,0.14189681]
[1680618634324,0.23386676,28167.0,28166.0,0.023677]
[1680618634551,0.23386676,28167.0,28166.0,0.023857]
[1680618635200,0.23386676,28167.0,28166.0,0.39943359]
[1680618635403,0.23886676,28167.0,28166.0,0.40043359]
[1680618635611,0.23386676,28167.0,28166.0,0.39943359]
[1680618636036,0.23886676,28167.0,28166.0,0.40043359]
[1680618636688,0.1190064,28172.0,28166.0,0.024857]
[1680618636899,0.08425,28172.0,28167.0,0.14189681]
[1680618637113,0.0841,28172.0,28168.0,0.023802]
[1680618637324,0.0841,28172.0,28169.0,0.33452389]
[1680618637537,0.0841,28172.0,28169.0,0.33470389]
[1680618637723,0.1306199,28172.0,28169.0,0.33470389]
[1680618637941,0.1377189,28172.0,28169.0,0.33470389]
[1680618638390,0.1306199,28172.0,28169.0,0.33470389]
[1680618638650,0.0841,28172.0,28169.0,0.33470389]
[1680618638875,0.0841,28172.0,28170.0,0.024968]
[1680618639094,0.0841,28172.0,28169.0,0.002]
[1680618639306,0.0841,28172.0,28169.0,0.00218]
[1680618639554,0.0841,28172.0,28169.0,0.002]
[1680618639787,0.0841,28172.0,28168.0,0.00018]
[1680618639788,0.1320396,28172.0,28168.0,0.00018]
[1680618640008,0.328394,28175.0,28169.0,0.002]
[1680618640009,0.674,28175.0,28169.0,0.002]
[1680618640284,0.0838,28171.0,28170.0,0.14189681]
[1680618640513,0.0838,28171.0,28170.0,0.022944]
[1680618640734,0.0838,28171.0,28168.0,0.021225]
[1680618641177,0.0838,28171.0,28169.0,0.001]
[1680618641366,0.0838,28171.0,28169.0,0.00118]
[1680618641635,0.0838,28171.0,28169.0,0.00018]
[1680618641859,0.0838,28171.0,28170.0,0.002]
[1680618641998,0.0838,28171.0,28170.0,0.025032]
[1680618642430,0.0838,28171.0,28170.0,0.45688335]
[1680618642620,0.0838,28171.0,28170.0,0.023873]
[1680618642850,0.0838,28171.0,28170.0,0.36720302]
[1680618643022,0.0838,28171.0,28170.0,0.39025202]
[1680618643644,0.0838,28171.0,28170.0,0.39225202]
[1680618643852,0.0838,28171.0,28170.0,0.39025202]
[1680618644057,0.0838,28171.0,28170.0,0.39125202]
[1680618644888,0.0838,28171.0,28170.0,0.48499958]
[1680618645672,0.0838,28171.0,28170.0,0.45198788]
[1680618645893,0.0838,28171.0,28170.0,0.024049]
[1680618646112,0.007098,28175.0,28170.0,0.34469926]
[1680618646330,0.02322976,28174.0,28171.0,0.022639]
[1680618646545,0.03032776,28174.0,28171.0,0.022819]
[1680618646988,0.03032776,28174.0,28171.0,0.00018]
[1680618647442,0.0833,28172.0,28171.0,0.00018]
[1680618647665,0.090399,28172.0,28171.0,0.00218]
[1680618648174,0.15920857,28172.0,28171.0,0.00218]
[1680618648393,0.15920857,28172.0,28171.0,0.39345274]
[1680618648614,0.15920857,28172.0,28171.0,0.39145274]
[1680618648834,0.15920857,28172.0,28171.0,0.39345274]
[1680618649712,0.15210957,28172.0,28171.0,0.39345274]
[1680618649938,0.15920857,28172.0,28171.0,0.39345274]
[1680618650134,0.0833,28172.0,28171.0,0.39345274]
[1680618650833,0.090399,28172.0,28171.0,0.39345274]
[1680618653031,0.090399,28172.0,28171.0,0.025382]
[1680618653243,0.0833,28172.0,28171.0,0.35747803]
[1680618653466,0.0833,28172.0,28171.0,0.026092]
[1680618653694,0.028408,28173.0,28171.0,0.43841851]
[1680618653931,0.028408,28173.0,28172.0,0.022713]
[1680618654181,0.028408,28173.0,28172.0,0.022893]
[1680618655101,0.112408,28173.0,28172.0,0.022893]
[1680618655571,0.112408,28173.0,28172.0,0.023893]
[1680618655790,0.112408,28173.0,28172.0,0.3560794]
[1680618656024,0.112408,28173.0,28172.0,0.3784924]
[1680618656480,0.112408,28173.0,28172.0,0.3734924]
[1680618656948,0.112408,28173.0,28172.0,0.022413]
[1680618657169,0.112408,28173.0,28170.0,0.02294]
[1680618657389,0.0841,28172.0,28171.0,0.37837963]
[1680618657607,0.0841,28172.0,28171.0,0.40222363]
[1680618658286,0.0841,28172.0,28171.0,0.40210363]
[1680618659164,0.0851,28172.0,28171.0,0.40210363]
[1680618660791,0.001,28172.0,28171.0,0.023724]
[1680618661025,0.001,28172.0,28171.0,0.208202]
[1680618661245,0.001,28172.0,28171.0,0.194004]
[1680618661960,0.0841,28177.0,28172.0,0.2]
[1680618662187,0.0841,28177.0,28173.0,0.16457481]
[1680618662385,0.23777478,28177.0,28174.0,0.02223]
[1680618662638,0.21315013,28177.0,28174.0,0.02223]
[1680618662871,0.21315013,28177.0,28173.0,0.022071]
[1680618663322,0.091198,28177.0,28172.0,0.194345]
[1680618663553,0.091198,28177.0,28173.0,0.022691]
[1680618663991,0.02334532,28176.0,28174.0,0.45115782]
[1680618664223,0.02334532,28176.0,28175.0,0.023392]
[1680618664408,0.091408,28177.0,28175.0,0.023392]
[1680618664664,0.091408,28177.0,28174.0,0.45115782]
[1680618664889,0.092408,28177.0,28174.0,0.45115782]
[1680618665338,0.091408,28177.0,28175.0,0.022457]
[1680618665560,0.092408,28177.0,28175.0,0.023457]
[1680618665805,0.02192582,28176.0,28175.0,0.001]
[1680618666040,0.02902382,28176.0,28175.0,0.001]
[1680618666473,0.02192582,28176.0,28175.0,0.34043904]
[1680618666710,0.007098,28177.0,28175.0,0.17484614]
[1680618666959,0.009098,28177.0,28175.0,0.15367314]
[1680618667163,0.007098,28177.0,28175.0,0.15367314]
[1680618667434,0.086,28176.0,28175.0,0.001]
[1680618667656,0.093098,28176.0,28173.0,0.34356495]
[1680618667870,0.084,28176.0,28175.0,0.41720482]
[1680618668083,0.084,28176.0,28175.0,0.44076882]
[1680618668326,0.091098,28176.0,28175.0,0.41720482]
[1680618668545,0.093098,28176.0,28175.0,0.41820482]
[1680618668772,0.13787595,28176.0,28175.0,0.41820482]
[1680618669438,0.086,28176.0,28175.0,0.41820482]
[1680618670356,0.093098,28176.0,28175.0,0.41820482]
[1680618670572,0.002,28176.0,28175.0,0.41820482]
[1680618671433,0.009098,28176.0,28175.0,0.41820482]
[1680618672755,0.33823408,28176.0,28175.0,0.001]
[1680618672984,0.42214839,28176.0,28175.0,0.001]
[1680618673905,0.83205439,28176.0,28175.0,0.001]
[1680618674176,0.85539797,28176.0,28175.0,0.001]
[1680618674405,0.87779137,28176.0,28175.0,0.001]
[1680618675084,0.84078037,28176.0,28175.0,0.001]
[1680618675586,0.87500637,28176.0,28172.0,0.29826072]
[1680618675806,0.084,28173.0,28172.0,0.29826072]
[1680618676050,0.091098,28173.0,28172.0,0.29844072]
[1680618676556,0.091098,28173.0,28170.0,0.1704]
[1680618676557,0.507519,28173.0,28170.0,6e-05]
[1680618676798,0.507519,28173.0,28167.0,0.40224048]
[1680618676799,0.4581,28171.0,28167.0,0.40224048]
[1680618677033,0.00021,28171.0,28168.0,0.523048]
[1680618677329,0.00021,28173.0,28169.0,0.036478]
[1680618677569,0.00021,28176.0,28172.0,0.5]
[1680618677788,0.007308,28176.0,28173.0,0.16501581]
[1680618678030,0.28585675,28175.0,28174.0,0.023158]
[1680618678250,0.007308,28175.0,28174.0,0.023158]
[1680618678475,0.084,28177.0,28173.0,0.02218]
[1680618678476,0.31579587,28176.0,28173.0,0.02218]
[1680618678719,0.05156839,28176.0,28175.0,0.5]
[1680618678963,0.00021,28176.0,28175.0,0.521677]
[1680618679199,0.016,28176.0,28175.0,0.67776981]
[1680618679447,0.016,28176.0,28175.0,0.64489254]
[1680618679678,0.016,28176.0,28175.0,0.65908854]
[1680618679907,0.028403,28178.0,28175.0,0.64489254]
[1680618680189,0.028403,28178.0,28176.0,0.222512]
[1680618680460,0.028403,28178.0,28177.0,0.022583]
[1680618680678,0.028403,28178.0,28177.0,0.192863]
[1680618681149,0.029403,28178.0,28177.0,0.192863]
[1680618681590,0.028403,28178.0,28177.0,0.192863]
[1680618681811,0.028403,28178.0,28177.0,0.195863]
[1680618682540,0.04998905,28178.0,28177.0,0.60403644]
[1680618682757,0.04998905,28178.0,28177.0,0.60703644]
[1680618683431,0.028403,28178.0,28177.0,0.60703644]
[1680618683653,0.028403,28178.0,28177.0,0.60403644]
[1680618683879,0.032403,28178.0,28177.0,0.60403644]
[1680618684102,0.028403,28178.0,28177.0,0.60403644]
[1680618684328,0.028403,28178.0,28177.0,0.60703644]
[1680618684563,0.028403,28178.0,28177.0,0.7235752]
[1680618684785,0.028403,28178.0,28177.0,0.76176856]
[1680618685030,0.029403,28178.0,28177.0,0.77076856]
[1680618686873,0.028403,28178.0,28177.0,0.76176856]
[1680618687103,0.02299,28182.0,28178.0,6e-05]
[1680618687362,0.02299,28182.0,28181.0,0.76142]
[1680618687583,0.02299,28182.0,28181.0,1.40944871]
[1680618687804,0.02299,28184.0,28182.0,0.2]
[1680618688027,0.02299,28184.0,28183.0,0.122553]
[1680618688261,0.02299,28184.0,28183.0,0.720573]
[1680618688456,0.02299,28184.0,28183.0,1.27339262]
[1680618688705,0.02299,28184.0,28183.0,1.27528356]
[1680618689605,0.02299,28184.0,28183.0,1.07528356]
[1680618689829,0.02299,28184.0,28183.0,1.06109156]
[1680618690051,0.02399,28184.0,28183.0,1.46482711]
[1680618690491,0.02399,28184.0,28183.0,1.11011655]
[1680618690710,0.02399,28184.0,28183.0,1.02601655]
[1680618691159,0.02399,28184.0,28183.0,0.59821655]
[1680618693046,0.02399,28184.0,28183.0,0.216481]
[1680618693292,0.02399,28184.0,28183.0,0.65911414]
[1680618699553,0.02399,28184.0,28183.0,0.216481]
[1680618699792,0.29727507,28184.0,28183.0,0.216481]
[1680618700013,0.29742807,28184.0,28183.0,0.216481]
[1680618701133,0.38862407,28184.0,28183.0,0.043673]
[1680618701379,0.38862407,28184.0,28183.0,0.022]
[1680618701601,0.42364798,28184.0,28181.0,0.5]
[1680618701833,0.34054798,28184.0,28183.0,0.009]
[1680618702077,0.43054398,28184.0,28181.0,0.5]
[1680618702316,0.34954798,28184.0,28183.0,0.001]
[1680618702512,0.42364798,28184.0,28181.0,0.80789327]
[1680618702778,0.0841,28183.0,28182.0,0.54315965]
[1680618703001,0.033143,28184.0,28182.0,0.54315965]
[1680618703226,0.033143,28184.0,28183.0,0.023078]
[1680618703452,0.023143,28184.0,28183.0,0.023078]